fUST/lending_fUST_20250131
["ID","MTS","AMOUNT","RATE_DAILY","PERIOD"]
[351016964,1738290638727,-500.0,0.00016437,2]
[351016965,1738290638736,-500.0,0.00016437,2]
[351016966,1738290638745,-500.0,0.00016437,2]
[351016967,1738290638755,-500.0,0.00016437,2]
[351016968,1738290638765,-500.0,0.00016437,2]
[351016969,1738290638774,-500.0,0.00016437,2]
[351016970,1738290638784,-500.0,0.00016437,2]
[351016971,1738290638794,-500.0,0.00016437,2]
[351016972,1738290638804,-500.0,0.00016437,2]
[351016973,1738290638813,-500.0,0.00016437,2]
[351016974,1738290638822,-500.0,0.00016437,2]
[351016975,1738290638831,-500.0,0.00016437,2]
[351016976,1738290638841,-500.0,0.00016437,2]
[351016977,1738290638851,-500.0,0.00016437,2]
[351016978,1738290638860,-500.0,0.00016437,2]
[351016979,1738290638871,-500.0,0.00016437,2]
[351016980,1738290638881,-500.0,0.00016437,2]
[351016981,1738290638891,-500.0,0.00016437,2]
[351016982,1738290638902,-500.0,0.00016437,2]
[351016983,1738290638911,-500.0,0.00016437,2]
[351016984,1738290638920,-500.0,0.00016437,2]
[351016985,1738290638930,-500.0,0.00016437,2]
[351016986,1738290638939,-500.0,0.00016437,2]
[351016987,1738290638949,-500.0,0.00016437,2]
[351016988,1738290638959,-500.0,0.00016437,2]
[351016989,1738290638968,-215.92773014,0.00016438,2]
[351016990,1738290638978,-500.0,0.00016438,2]
[351016991,1738290638988,-501.79287872,0.00016438,2]
[351016992,1738290638998,-634.48019151,0.00016438,2]
[351016993,1738290639007,-500.0,0.00016438,2]
[351016994,1738290639017,-500.0,0.00016438,2]
[351016995,1738290639027,-500.0,0.00016438,2]
[351016996,1738290639036,-516.65638506,0.00016438,2]
[351016997,1738290639046,-500.0,0.00016438,2]
[351016998,1738290639055,-500.0,0.00016438,2]
[351016999,1738290639064,-500.0,0.00016438,2]
[351017000,1738290639074,-500.0,0.00016438,2]
[351017001,1738290639083,-520.59231816,0.00016438,2]
[351017002,1738290639092,-501.85774214,0.00016438,2]
[351017003,1738290639102,-508.61996025,0.00016438,2]
[351017004,1738290639111,-510.1588383,0.00016438,2]
[351017005,1738290639120,-513.82456705,0.00016438,2]
[351017006,1738290639130,-500.0,0.00016438,2]
[351017007,1738290639139,-506.91307124,0.00016438,2]
[351017008,1738290639149,-505.52380845,0.00016438,2]
[351017009,1738290639158,-504.1403517,0.00016438,2]
[351017010,1738290639168,-500.0,0.00016438,2]
[351017011,1738290639177,-518.10170976,0.00016438,2]
[351017012,1738290639187,-500.0,0.00016438,2]
[351017013,1738290639196,-506.06697782,0.00016438,2]
[351017014,1738290639207,-505.54040409,0.00016438,2]
[351017015,1738290639216,-500.0,0.00016438,2]
[351017016,1738290639225,-515.72085058,0.00016438,2]
[351017017,1738290639234,-500.0,0.00016438,2]
[351017018,1738290639244,-509.23776585,0.00016438,2]
[351017019,1738290639253,-507.38793785,0.00016438,2]
[351017020,1738290639263,-510.77939525,0.00016438,2]
[351017021,1738290639272,-574.334888,0.00016438,2]
[351017022,1738290639282,-505.4454754,0.00016438,2]
[351017023,1738290639291,-503.61559492,0.00016438,2]
[351017024,1738290639300,-630.8465654,0.00016438,2]
[351017025,1738290639310,-500.0,0.00016438,2]
[351017026,1738290639319,-500.0,0.00016438,2]
[351017027,1738290639328,-500.0,0.00016438,2]
[351017028,1738290639338,-500.0,0.00016438,2]
[351017029,1738290639348,-500.0,0.00016438,2]
[351017030,1738290639357,-500.0,0.00016438,2]
[351017031,1738290639368,-502.73500177,0.00016438,2]
[351017032,1738290639378,-510.58115814,0.00016438,2]
[351017033,1738290639387,-500.0,0.00016438,2]
[351017034,1738290639397,-502.76109997,0.00016438,2]
[351017035,1738290639407,-500.0,0.00016438,2]
[351017036,1738290639417,-500.0,0.00016438,2]
[351017037,1738290639426,-503.12620767,0.00016438,2]
[351017038,1738290639435,-500.0,0.00016438,2]
[351017039,1738290639445,-501.54152466,0.00016438,2]
[351017040,1738290639454,-500.0,0.00016438,2]
[351017041,1738290639463,-500.0,0.00016438,2]
[351017042,1738290639473,-500.0,0.00016438,2]
[351017043,1738290639482,-508.651885,0.00016438,2]
[351017044,1738290639491,-520.12562991,0.00016438,2]
[351017045,1738290639500,-1796.18,0.00016438,2]
[351017046,1738290639509,-500.0,0.00016438,2]
[351017047,1738290639521,-506.54723929,0.00016438,2]
[351017048,1738290639530,-500.0,0.00016438,2]
[351017049,1738290639540,-506.86615377,0.00016438,2]
[351017050,1738290639554,-500.0,0.00016438,2]
[351017051,1738290639563,-500.0,0.00016438,2]
[351017052,1738290639573,-508.91746325,0.00016438,2]
[351017053,1738290639582,-508.33003483,0.00016438,2]
[351017054,1738290639591,-500.0,0.00016438,2]
[351017055,1738290639600,-515.98451717,0.00016438,2]
[351017056,1738290639610,-504.52730465,0.00016438,2]
[351017057,1738290639619,-506.63617438,0.00016438,2]
[351017058,1738290639628,-500.0,0.00016438,2]
[351017059,1738290639638,-500.0,0.00016438,2]
[351017060,1738290639648,-505.90998157,0.00016438,2]
[351017061,1738290639657,-500.0,0.00016438,2]
[351017062,1738290639666,-500.0,0.00016574,2]
[351017063,1738290639675,-203.71791963,0.00016574,2]
[351017064,1738290639685,-359.68127874,0.00016574,2]
[351017065,1738290639694,-608.66,0.00016574,2]
[351017066,1738290639704,-34619.87011544,0.00016575,5]
[351017067,1738290639713,-504.4588339,0.00016575,2]
[351017068,1738290639723,-500.0,0.00016575,2]
[351017069,1738290639732,-506.27543063,0.00016575,2]
[351017070,1738290639742,-505.2358516,0.00016575,2]
[351017071,1738290639752,-513.34633817,0.00016575,2]
[351017072,1738290639765,-344.16238023,0.00016575,2]
[351017073,1738290639775,-242.25693022,0.00016575,2]
[351017074,1738290639784,-243.11524093,0.00016575,2]
[351017075,1738290639793,-532.70764954,0.00016575,2]
[351017076,1738290639802,-235.55129687,0.00016575,2]
[351017077,1738290639812,-509.40470193,0.00016575,2]
[351017078,1738290639822,-442.25399606,0.00016575,2]
[351017079,1738290639831,-161.88682877,0.00016575,2]
[351017080,1738290639840,-253.1010175,0.00016575,2]
[351017081,1738290639849,-150.39324713,0.00016575,2]
[351017082,1738290639860,-500.0,0.00016575,2]
[351017083,1738290639869,-500.0,0.00016575,2]
[351017084,1738290639878,-622.59707301,0.00016575,2]
[351017085,1738290639888,-500.0,0.00016575,2]
[351017086,1738290639897,-515.06625269,0.00016575,2]
[351017087,1738290639906,-500.0,0.00016575,2]
[351017088,1738290639915,-500.0,0.00016575,2]
[351017089,1738290639924,-307.11316033,0.00016575,2]
[351017090,1738290639933,-311.35649978,0.00016575,2]
[351017091,1738290639942,-500.0,0.00016575,2]
[351017092,1738290639951,-283.97371001,0.00016575,2]
[351017093,1738290639961,-422.78722132,0.00016575,2]
[351017094,1738290639970,-437.90994804,0.00016575,2]
[351017095,1738290639979,-500.0,0.00016575,2]
[351017096,1738290639988,-267.46506876,0.00016575,2]
[351017097,1738290639998,-500.0,0.00016575,2]
[351017098,1738290640008,-500.0,0.00016575,2]
[351017099,1738290640021,-500.0,0.00016575,2]
[351017100,1738290640030,-500.0,0.00016575,2]
[351017101,1738290640040,-500.0,0.00016575,2]
[351017102,1738290640049,-500.0,0.00016575,2]
[351017103,1738290640059,-307.48282048,0.00016575,2]
[351017104,1738290640069,-500.0,0.00016575,2]
[351017105,1738290640079,-500.0,0.00016575,2]
[351017106,1738290640088,-500.0,0.00016575,2]
[351017107,1738290640097,-257.3729291,0.00016575,2]
[351017108,1738290640107,-507.37003312,0.00016575,2]
[351017109,1738290640116,-500.0,0.00016575,2]
[351017110,1738290640125,-500.0,0.00016575,2]
[351017111,1738290640135,-155.84318248,0.00016575,2]
[351017112,1738290640145,-1796.18,0.00016575,2]
[351017113,1738290640155,-425.05139653,0.00016575,2]
[351017114,1738290640164,-295.45052208,0.00016575,2]
[351017115,1738290640173,-500.0,0.00016575,2]
[351017116,1738290640183,-500.0,0.00016575,2]
[351017117,1738290640192,-500.0,0.00016575,2]
[351017118,1738290640201,-500.0,0.00016575,2]
[351017119,1738290640210,-500.0,0.00016575,2]
[351017120,1738290640220,-500.0,0.00016575,2]
[351017121,1738290640229,-500.0,0.00016712,2]
[351017122,1738290640239,-500.0,0.00016712,2]
[351017123,1738290640248,-500.0,0.00016712,2]
[351017124,1738290640258,-500.0,0.00016712,2]
[351017125,1738290640271,-500.0,0.00016712,2]
[351017126,1738290640280,-500.0,0.00016712,2]
[351017127,1738290640290,-529.960005,0.00016712,2]
[351017128,1738290640299,-479.61228987,0.00016712,2]
[351017129,1738290640309,-500.0,0.00016712,2]
[351017130,1738290640319,-500.0,0.00016712,2]
[351017131,1738290640328,-500.0,0.00016712,2]
[351017132,1738290640338,-500.0,0.00016712,2]
[351017133,1738290640347,-500.0,0.00016712,2]
[351017134,1738290640356,-468.85109322,0.00016712,2]
[351017135,1738290640366,-500.0,0.00016712,2]
[351017136,1738290640376,-500.0,0.00016712,2]
[351017137,1738290640385,-500.0,0.00016712,2]
[351017138,1738290640394,-500.0,0.00016712,2]
[351017139,1738290640403,-500.0,0.00016712,2]
[351017140,1738290640412,-1796.18,0.00016712,2]
[351017141,1738290640421,-500.0,0.00016712,2]
[351017142,1738290640430,-484.80505758,0.00016712,2]
[351017143,1738290640440,-500.0,0.00016712,2]
[351017144,1738290640449,-500.0,0.00016712,2]
[351017145,1738290640458,-500.0,0.00016712,2]
[351017146,1738290640468,-500.0,0.00016712,2]
[351017147,1738290640477,-336.18477982,0.00016742,2]
[351017148,1738290640486,-608.66,0.00016848,2]
[351017149,1738290640496,-500.0,0.00016849,2]
[351017150,1738290640505,-639.66289332,0.00016849,2]
[351017151,1738290640519,-500.0,0.00016849,2]
[351017152,1738290640529,-593.40186462,0.00016849,2]
[351017153,1738290640538,-500.0,0.00016849,2]
[351017154,1738290640547,-500.0,0.00016849,2]
[351017155,1738290640558,-500.0,0.00016849,2]
[351017156,1738290640568,-500.0,0.00016849,2]
[351017157,1738290640578,-500.0,0.00016849,2]
[351017158,1738290640588,-500.0,0.00016849,2]
[351017159,1738290640597,-500.0,0.00016849,2]
[351017160,1738290640606,-500.0,0.00016849,2]
[351017161,1738290640615,-500.0,0.00016849,2]
[351017162,1738290640625,-500.0,0.00016849,2]
[351017163,1738290640634,-500.0,0.00016849,2]
[351017164,1738290640643,-500.0,0.00016849,2]
[351017165,1738290640652,-1796.18,0.00016849,2]
[351017166,1738290640661,-165.68811601,0.00016849,2]
[351017167,1738290640671,-500.0,0.00016849,2]
[351017168,1738290640680,-500.0,0.00016849,2]
[351017169,1738290640689,-500.0,0.00016849,2]
[351017170,1738290640699,-500.0,0.00016849,2]
[351017171,1738290640708,-420.0,0.00016961,2]
[351017172,1738290640717,-608.66,0.00016985,2]
[351017173,1738290640726,-500.0,0.00016986,2]
[351017174,1738290640734,-500.0,0.00016986,2]
[351017175,1738290640743,-500.0,0.00016986,2]
[351017176,1738290640752,-500.0,0.00016986,2]
[351017177,1738290640761,-500.0,0.00016986,2]
[351017178,1738290640773,-500.0,0.00016986,2]
[351017179,1738290640782,-278.15499503,0.00016986,2]
[351017180,1738290640791,-500.0,0.00016986,2]
[351017181,1738290640800,-500.0,0.00016986,2]
[351017182,1738290640809,-500.0,0.00016986,2]
[351017183,1738290640819,-500.0,0.00016986,2]
[351017184,1738290640828,-500.0,0.00016986,2]
[351017185,1738290640838,-500.0,0.00016986,2]
[351017186,1738290640847,-500.0,0.00016986,2]
[351017187,1738290640856,-1796.18,0.00016986,2]
[351017188,1738290640866,-500.0,0.00016986,2]
[351017189,1738290640875,-283.14644301,0.00016986,2]
[351017190,1738290640884,-500.0,0.00016986,2]
[351017191,1738290640894,-500.0,0.00016986,2]
[351017192,1738290640903,-500.0,0.00017123,2]
[351017193,1738290640913,-500.0,0.00017123,2]
[351017194,1738290640922,-500.0,0.00017123,2]
[351017195,1738290640931,-500.0,0.00017123,2]
[351017196,1738290640940,-500.0,0.00017123,2]
[351017197,1738290640949,-597.76,0.00017123,2]
[351017198,1738290641060,-500.0,0.00017123,2]
[351017199,1738290641069,-500.0,0.00017123,2]
[351017200,1738290641079,-500.0,0.00017123,2]
[351017201,1738290641088,-500.0,0.00017123,2]
[351017202,1738290641098,-500.0,0.00017123,2]
[351017203,1738290641107,-500.0,0.00017123,2]
[351017204,1738290641116,-500.0,0.00017123,2]
[351017205,1738290641126,-1796.18,0.00017123,2]
[351017206,1738290641136,-500.0,0.00017123,2]
[351017207,1738290641145,-500.0,0.00017123,2]
[351017208,1738290641155,-500.0,0.00017123,2]
[351017209,1738290641164,-608.66,0.00017259,2]
[351017210,1738290641174,-500.0,0.0001726,2]
[351017211,1738290641183,-500.0,0.0001726,2]
[351017212,1738290641192,-500.0,0.0001726,2]
[351017213,1738290641202,-500.0,0.0001726,2]
[351017214,1738290641211,-500.0,0.0001726,2]
[351017215,1738290641221,-500.0,0.0001726,2]
[351017216,1738290641230,-500.0,0.0001726,2]
[351017217,1738290641240,-500.0,0.0001726,2]
[351017218,1738290641250,-500.0,0.0001726,2]
[351017219,1738290641260,-500.0,0.0001726,2]
[351017220,1738290641272,-500.0,0.0001726,2]
[351017221,1738290641282,-1796.18,0.0001726,2]
[351017222,1738290641291,-500.0,0.0001726,2]
[351017223,1738290641301,-500.0,0.0001726,2]
[351017224,1738290641311,-276.87267319,0.0001726,2]
[351017225,1738290641321,-500.0,0.00017397,2]
[351017226,1738290641330,-500.0,0.00017397,2]
[351017227,1738290641340,-500.0,0.00017397,2]
[351017228,1738290641349,-390.01693726,0.00017397,2]
[351017229,1738290641358,-500.0,0.00017397,2]
[351017230,1738290641367,-551.63676591,0.00017397,2]
[351017231,1738290641377,-535.33618911,0.00017397,2]
[351017232,1738290641387,-500.0,0.00017397,2]
[351017233,1738290641397,-500.0,0.00017397,2]
[351017234,1738290641406,-500.0,0.00017397,2]
[351017235,1738290641415,-1796.18,0.00017397,2]
[351017236,1738290641425,-500.0,0.00017397,2]
[351017237,1738290641435,-500.0,0.00017397,2]
[351017238,1738290641445,-500.0,0.00017452,2]
[351017239,1738290641455,-608.66,0.00017532,2]
[351017240,1738290641465,-608.66,0.00017532,2]
[351017241,1738290641475,-5164.53355226,0.00017534,5]
[351017242,1738290641484,-500.0,0.00017534,2]
[351017243,1738290641494,-500.0,0.00017534,2]
[351017244,1738290641503,-500.0,0.00017534,2]
[351017245,1738290641512,-500.0,0.00017534,2]
[351017246,1738290641526,-1796.18,0.00017534,2]
[351017247,1738290641536,-315.08429619,0.00017534,2]
[351017248,1738290641545,-358.3307999,0.00017562,2]
[351017249,1738290641559,-500.0,0.00017671,2]
[351017250,1738290641568,-500.0,0.00017671,2]
[351017251,1738290641578,-361.89990898,0.00017671,2]
[351017252,1738290641588,-500.0,0.00017671,2]
[351017253,1738290641597,-1796.18,0.00017671,2]
[351017254,1738290641606,-500.0,0.00017808,2]
[351017255,1738290641616,-500.0,0.00017808,2]
[351017256,1738290641625,-500.0,0.00017808,2]
[351017257,1738290641634,-1796.18,0.00017808,2]
[351017258,1738290641644,-211.79256302,0.000179,2]
[351017259,1738290641654,-500.0,0.00017945,2]
[351017260,1738290641663,-500.0,0.00017945,2]
[351017261,1738290641673,-500.0,0.00017945,2]
[351017262,1738290641682,-1796.18,0.00017945,2]
[351017263,1738290641692,-608.66,0.00018081,2]
[351017264,1738290641702,-500.0,0.00018082,2]
[351017265,1738290641712,-500.0,0.00018082,2]
[351017266,1738290641722,-500.0,0.00018082,2]
[351017267,1738290641731,-1796.18,0.00018082,2]
[351017268,1738290641741,-13251.59009625,0.00018125,2]
[351017269,1738290641750,-500.0,0.00018219,2]
[351017270,1738290641760,-500.0,0.00018219,2]
[351017271,1738290641771,-305.52513405,0.00018219,2]
[351017272,1738290641780,-1796.18,0.00018219,2]
[351017273,1738290641789,-288.0803657,0.00018247,2]
[351017274,1738290641799,-156.6012032,0.00018247,2]
[351017275,1738290641809,-215.5255313,0.00018247,2]
[351017276,1738290641819,-154.3747797,0.00018247,2]
[351017277,1738290641829,-215.5255313,0.00018247,2]
[351017278,1738290641838,-154.3747797,0.00018247,2]
[351017279,1738290641848,-215.5255313,0.00018247,2]
[351017280,1738290641858,-153.3192163,0.00018247,2]
[351017281,1738290641868,-659.155,0.00018327,2]
[351017282,1738290641877,-537.0,0.0001834,2]
[351017283,1738290641886,-2044.0,0.0001834,2]
[351017284,1738290641895,-2303.0,0.0001834,2]
[351017285,1738290641905,-396.0,0.0001834,2]
[351017286,1738290641915,-500.0,0.00018356,2]
[351017287,1738290641924,-500.0,0.00018356,2]
[351017288,1738290641934,-1796.18,0.00018356,2]
[351017289,1738290641943,-500.0,0.00018493,2]
[351017290,1738290641953,-500.0,0.00018493,2]
[351017291,1738290641963,-1796.18,0.00018493,2]
[351017292,1738290641973,-1004.72,0.000185,6]
[351017293,1738290641982,-211.79256302,0.00018525,2]
[351017294,1738290641992,-500.0,0.00018548,2]
[351017295,1738290642004,-587.0,0.00018553,2]
[351017296,1738290642014,-155.96,0.000186,2]
[351017297,1738290642024,-155.96,0.000186,2]
[351017298,1738290642035,-500.0,0.0001863,2]
[351017299,1738290642045,-500.0,0.0001863,2]
[351017300,1738290642055,-1796.18,0.0001863,2]
[351017301,1738290642065,-467.20597069,0.00018654,2]
[351017302,1738290642075,-608.66,0.00018688,2]
[351017303,1738290642085,-500.0,0.00018767,2]
[351017304,1738290642096,-500.0,0.00018767,2]
[351017305,1738290642105,-1796.18,0.00018767,2]
[351017306,1738290642115,-608.66,0.00018899,2]
[351017307,1738290642124,-608.66,0.00018899,2]
[351017308,1738290642133,-8198.80266625,0.000189,2]
[351017309,1738290642143,-608.66,0.00018903,2]
[351017310,1738290642153,-341.43630538,0.00018904,2]
[351017311,1738290642162,-224.90923131,0.00018904,2]
[351017312,1738290642172,-1796.18,0.00018904,2]
[351017313,1738290642182,-157.066395,0.00018904,2]
[351017314,1738290642191,-303.03030303,0.00019,2]
[351017315,1738290642201,-303.00000303,0.00019,2]
[351017316,1738290642210,-151.0,0.00019041,2]
[351017317,1738290642220,-151.0,0.00019041,2]
[351017318,1738290642230,-1796.18,0.00019041,2]
[351017319,1738290642239,-215.5255313,0.00019068,2]
[351017320,1738290642249,-154.3747797,0.00019068,2]
[351017321,1738290642259,-154.3747797,0.00019068,2]
[351017322,1738290642271,-215.5255313,0.00019068,2]
[351017323,1738290642280,-215.5255313,0.00019068,2]
[351017324,1738290642289,-153.3071466,0.00019068,2]
[351017325,1738290642298,-215.5255313,0.00019068,2]
[351017326,1738290642309,-214.8042704,0.00019068,2]
[351017327,1738290642318,-215.4605405,0.00019068,2]
[351017328,1738290642328,-153.6121326,0.00019068,2]
[351017329,1738290642338,-153.0,0.00019068,2]
[351017330,1738290642347,-153.0,0.00019068,2]
[351017331,1738290642357,-170.0,0.000191,4]
[351017332,1738290642378,-211.79256302,0.0001915,2]
[351017333,1738290642388,-608.66,0.00019177,2]
[351017334,1738290642410,-548.35739371,0.00019177,2]
[351017335,1738290642423,-151.0,0.00019177,2]
[351017336,1738290642437,-640.79,0.00019178,2]
[351017337,1738290642450,-640.79,0.00019178,2]
[351017338,1738290642464,-640.79,0.00019178,2]
[351017339,1738290642476,-640.79,0.00019178,2]
[351017340,1738290642487,-640.79,0.00019178,2]
[351017341,1738290642498,-640.79,0.00019178,2]
[351017342,1738290642511,-640.79,0.00019178,2]
[351017343,1738290642525,-640.79,0.00019178,2]
[351017344,1738290642537,-640.79,0.00019178,2]
[351017345,1738290642552,-640.79,0.00019178,2]
[351017346,1738290642564,-640.79,0.00019178,2]
[351017347,1738290642576,-640.79,0.00019178,2]
[351017348,1738290642587,-640.79,0.00019178,2]
[351017349,1738290642600,-640.79,0.00019178,2]
[351017350,1738290642612,-640.79,0.00019178,2]
[351017351,1738290642625,-640.79,0.00019178,2]
[351017352,1738290642640,-640.79,0.00019178,2]
[351017353,1738290642651,-640.79,0.00019178,2]
[351017354,1738290642664,-640.79,0.00019178,2]
[351017355,1738290642676,-640.79,0.00019178,2]
[351017356,1738290642689,-640.79,0.00019178,2]
[351017357,1738290642700,-500.0,0.00019178,2]
[351017358,1738290642712,-500.0,0.00019178,2]
[351017359,1738290642728,-500.0,0.00019178,2]
[351017360,1738290642740,-500.0,0.00019178,2]
[351017362,1738290642753,-500.0,0.00019178,2]
[351017363,1738290642766,-500.0,0.00019178,2]
[351017364,1738290642779,-500.0,0.00019178,2]
[351017365,1738290642790,-500.0,0.00019178,2]
[351017366,1738290642802,-500.0,0.00019178,2]
[351017367,1738290642813,-474.63726112,0.00019178,2]
[351017368,1738290642824,-500.0,0.00019178,7]
[351017369,1738290642835,-1796.18,0.00019178,2]
[351017370,1738290642846,-175.365715,0.00019178,2]
[351017371,1738290642859,-177.977433,0.00019178,2]
[351017372,1738290642870,-303.03030303,0.0001919,2]
[351017374,1738290642882,-303.00000303,0.0001919,2]
[351017376,1738290642896,-592.54608483,0.00019199,2]
[351017378,1738290642907,-170.0,0.000192,7]
[351017379,1738290642920,-1685.989,0.000192,2]
[351017380,1738290642932,-91616.07994007,0.000192,2]
[351017386,1738290643083,-800.88919395,0.000192,2]
[351017387,1738290643096,-22661.60939268,0.000192,2]
[351017388,1738290643119,-175819.37219454,0.000192,2]
[351017395,1738290643403,-4929.6873341,0.000192,2]
[351017396,1738290643460,-1605.63329206,0.000192,2]
[351017397,1738290643475,-471.03760589,0.000192,2]
[351017398,1738290643516,-935.90245508,0.000192,2]
[351017419,1738290646520,-31487.59435137,0.000192,2]
[351017426,1738290787430,159.822982,0.00013973,2]
[351017429,1738291657633,167.363719,0.00013973,2]
[351017437,1738291808812,281.0,0.00013,2]
[351017492,1738291832727,-24900.0,0.00015155,2]
[351017493,1738291832737,-330.140452,0.00015368,2]
[351017495,1738291832746,-166.0,0.00015425,2]
[351017497,1738291832755,-16130.2909733,0.0001553,2]
[351017499,1738291832764,-453.88083168,0.00016337,2]
[351017501,1738291832774,-175.32100335,0.00016338,2]
[351017503,1738291832783,-500.0,0.00016437,2]
[351017505,1738291832792,-500.0,0.00016437,2]
[351017507,1738291832801,-500.0,0.00016437,2]
[351017509,1738291832811,-360.14653309,0.00016437,2]
[351017511,1738291832820,-500.0,0.00016437,2]
[351017513,1738291832830,-361.35530298,0.00016437,2]
[351017515,1738291832839,-500.0,0.00016437,2]
[351017516,1738291832849,-500.0,0.00016437,2]
[351017518,1738291832858,-555.59925409,0.00016437,2]
[351017519,1738291832868,-500.0,0.00016437,2]
[351017521,1738291832878,-500.0,0.00016437,2]
[351017523,1738291832887,-522.37590245,0.00016437,2]
[351017524,1738291832897,-500.0,0.00016437,2]
[351017525,1738291832907,-500.0,0.00016437,2]
[351017526,1738291832917,-187.30003919,0.00016437,2]
[351017529,1738291832928,-500.0,0.00016437,2]
[351017530,1738291832940,-500.0,0.00016437,2]
[351017532,1738291832950,-500.0,0.00016437,2]
[351017534,1738291832959,-500.0,0.00016437,2]
[351017535,1738291832969,-500.0,0.00016437,2]
[351017536,1738291832983,-500.0,0.00016437,2]
[351017537,1738291832992,-500.0,0.00016437,2]
[351017538,1738291833002,-500.0,0.00016437,2]
[351017539,1738291833013,-500.0,0.00016437,2]
[351017540,1738291833022,-312.75899424,0.00016437,2]
[351017542,1738291833032,-500.0,0.00016437,2]
[351017544,1738291833042,-590.30655491,0.00016437,2]
[351017546,1738291833052,-501.78549675,0.00016438,2]
[351017548,1738291833062,-502.62478237,0.00016438,2]
[351017550,1738291833071,-502.16461915,0.00016438,2]
[351017551,1738291833081,-501.7727699,0.00016438,2]
[351017553,1738291833091,-500.0,0.00016438,2]
[351017555,1738291833100,-500.0,0.00016438,2]
[351017556,1738291833110,-502.62246654,0.00016438,2]
[351017557,1738291833120,-507.20120319,0.00016438,2]
[351017558,1738291833130,-488.30537701,0.00016438,2]
[351017559,1738291833378,-13.84495706,0.00016438,2]
[351017560,1738291833389,-504.33058899,0.00016438,2]
[351017561,1738291833399,-378.37579621,0.00016438,2]
[351017562,1738291833416,-125.1939453,0.00016438,2]
[351017563,1738291833426,-504.38572874,0.00016438,2]
[351017564,1738291833436,-501.41019791,0.00016438,2]
[351017565,1738291833445,-500.0,0.00016438,2]
[351017566,1738291833456,-552.12465141,0.00016438,2]
[351017567,1738291833466,-500.0,0.00016438,2]
[351017568,1738291833475,-515.47732607,0.00016438,2]
[351017569,1738291833485,-502.10990369,0.00016438,2]
[351017570,1738291833495,-501.10480771,0.00016438,2]
[351017571,1738291833505,-501.60537348,0.00016438,2]
[351017572,1738291833516,-502.68344302,0.00016438,2]
[351017573,1738291833526,-500.0,0.00016438,2]
[351017574,1738291833537,-500.0,0.00016438,2]
[351017575,1738291833548,-509.3983537,0.00016438,2]
[351017576,1738291833560,-503.83537492,0.00016438,2]
[351017577,1738291833570,-507.01046882,0.00016438,2]
[351017578,1738291833583,-236.30997485,0.00016438,2]
[351017579,1738291833594,-503.96626154,0.00016438,2]
[351017580,1738291833604,-433.33214648,0.00016438,2]
[351017581,1738291833614,-500.0,0.00016438,2]
[351017582,1738291833624,-500.0,0.00016438,2]
[351017583,1738291833634,-500.0,0.00016438,2]
[351017584,1738291833643,-500.0,0.00016438,2]
[351017585,1738291833653,-559.74581774,0.00016438,2]
[351017586,1738291833663,-500.0,0.00016438,2]
[351017587,1738291833673,-500.0,0.00016438,2]
[351017588,1738291833683,-500.0,0.00016438,2]
[351017589,1738291833692,-485.79221858,0.00016438,2]
[351017590,1738291833702,-500.0,0.00016438,2]
[351017591,1738291833712,-500.0,0.00016438,2]
[351017592,1738291833721,-500.0,0.00016438,2]